bitfinex-derivatives/quotes_BTCF0:USTF0_20250626
["timestamp","ask_amount","ask_price","bid_price","bid_amount"]
[1750953339971,1.37133636,107220.0,107210.0,0.52272404]
[1750953340276,1.37133636,107220.0,107210.0,0.47610784]
[1750953340677,1.37133636,107220.0,107210.0,0.46103816]
[1750953340875,1.95821636,107220.0,107210.0,0.001]
[1750953341970,1.96775967,107220.0,107210.0,0.001]
[1750953342681,0.1864714,107210.0,107200.0,0.00093279]
[1750953342979,1.33895376,107210.0,107200.0,0.00093279]
[1750953343876,1.33895376,107210.0,107200.0,0.00293279]
[1750953344882,1.33895376,107210.0,107200.0,0.00493279]
[1750953345477,1.83845376,107210.0,107200.0,0.19142159]
[1750953346577,1.83845376,107210.0,107200.0,0.61260395]
[1750953346578,1.4167714,107210.0,107200.0,0.61260395]
[1750953346883,1.4167714,107210.0,107200.0,0.28532159]
[1750953348989,0.6495,107210.0,107200.0,0.64460395]
[1750953349189,0.8359714,107210.0,107200.0,0.64460395]
[1750953351386,0.3364714,107210.0,107200.0,0.64460395]
[1750953352687,0.8572714,107210.0,107200.0,0.42688159]
[1750953354087,0.6072714,107210.0,107200.0,0.42688159]
[1750953356982,0.06,107210.0,107200.0,0.78616395]
[1750953357386,0.2464714,107210.0,107200.0,0.78616395]
[1750953361789,0.06,107210.0,107200.0,0.78616395]
[1750953361994,0.0002,107220.0,107210.0,0.1864714]
[1750953362291,0.03,107220.0,107210.0,1.55635376]
[1750953363996,0.1866511,107230.0,107220.0,0.186454]
[1750953364299,0.7272511,107230.0,107220.0,0.422814]
[1750953364495,0.92426004,107230.0,107220.0,0.422814]
[1750953364696,0.74426004,107230.0,107220.0,0.422814]
[1750953364891,0.8772511,107230.0,107220.0,0.422814]
[1750953365095,0.8772511,107230.0,107220.0,0.423814]
[1750953366101,0.9100511,107230.0,107220.0,0.423814]
[1750953366599,0.9100511,107230.0,107220.0,0.425814]
[1750953367102,0.9100511,107230.0,107220.0,0.423814]
[1750953370999,0.33,107230.0,107220.0,0.78309636]
[1750953371203,0.33,107230.0,107220.0,1.14389636]
[1750953371394,0.3904507,107240.0,107230.0,0.1864366]
[1750953371598,0.7202507,107240.0,107230.0,0.1864366]
[1750953371903,1.07953306,107240.0,107230.0,0.1864366]
[1750953372301,0.394,107240.0,107230.0,0.7727966]
[1750953372496,0.5940152,107250.0,107240.0,0.1864192]
[1750953372805,1.03942347,107250.0,107240.0,0.3918792]
[1750953373005,1.07012347,107250.0,107240.0,0.3918792]
[1750953373206,1.0431175,107250.0,107240.0,0.3918792]
[1750953374209,1.0441175,107250.0,107240.0,0.3918792]
[1750953374611,1.40339986,107250.0,107240.0,0.3279792]
[1750953374812,1.40339986,107250.0,107220.0,0.8815991]
[1750953374813,0.1864366,107230.0,107220.0,0.8815991]
[1750953375109,1.27651896,107230.0,107220.0,0.4678464]
[1750953375309,0.9797366,107230.0,107220.0,0.4678464]
[1750953376402,0.9797366,107230.0,107220.0,0.4688464]
[1750953377006,0.9797366,107230.0,107220.0,0.4708464]
[1750953378512,1.33901896,107230.0,107220.0,0.189454]
[1750953378716,1.33901896,107230.0,107220.0,0.14424]
[1750953378915,1.33901896,107230.0,107220.0,0.330694]
[1750953379114,1.33901896,107230.0,107220.0,0.14424]
[1750953379314,1.33901896,107230.0,107220.0,0.330694]
[1750953381512,0.9797366,107230.0,107220.0,0.330694]
[1750953381713,1.33901896,107230.0,107220.0,0.330694]
[1750953382615,1.69981896,107230.0,107220.0,0.330694]
[1750953383221,1.69981896,107230.0,107220.0,0.003]
[1750953383517,1.69981896,107230.0,107220.0,0.14424]
[1750953383719,1.69981896,107230.0,107220.0,0.330694]
[1750953384831,1.3405366,107230.0,107220.0,0.330694]
[1750953385014,1.69981896,107230.0,107220.0,0.330694]
[1750953385415,2.28589896,107230.0,107220.0,0.330694]
[1750953385614,1.69981896,107230.0,107220.0,0.330694]
[1750953386021,1.3405366,107230.0,107220.0,0.330694]
[1750953387217,1.69981896,107230.0,107220.0,0.330694]
[1750953388526,1.3405366,107230.0,107220.0,0.330694]
[1750953389022,1.3405366,107230.0,107220.0,0.395194]
[1750953389526,1.3098366,107230.0,107220.0,0.981234]
[1750953389718,1.3098366,107230.0,107220.0,1.013534]
[1750953389918,0.9172366,107230.0,107220.0,1.37281636]
[1750953390127,0.04,107230.0,107220.0,1.73361636]
[1750953390325,0.7504547,107240.0,107230.0,0.1864366]
[1750953390523,0.6728461,107240.0,107230.0,0.57781896]
[1750953390722,0.5464192,107240.0,107230.0,0.57781896]
[1750953391023,0.3564192,107240.0,107230.0,0.61011896]
[1750953391724,0.3564192,107240.0,107230.0,0.62575526]
[1750953392220,0.17,107240.0,107230.0,0.98655526]
[1750953393024,1.173321,107250.0,107240.0,0.1864192]
[1750953393227,1.503121,107250.0,107240.0,1.0073192]
[1750953393425,1.503121,107250.0,107240.0,1.36660156]
[1750953393724,1.503121,107250.0,107240.0,1.37601551]
[1750953394426,0.9238167,107250.0,107240.0,1.37601551]
[1750953396126,0.9238167,107250.0,107240.0,0.98543315]
[1750953396322,0.9852167,107250.0,107240.0,0.98543315]
[1750953400228,0.9852167,107250.0,107240.0,0.92283315]
[1750953402432,0.9852167,107250.0,107240.0,0.95583315]
[1750953402819,0.9547167,107250.0,107240.0,0.95583315]
[1750953403022,0.9547167,107250.0,107240.0,1.34811551]
[1750953403426,0.9081152,107250.0,107240.0,1.34811551]
[1750953403632,0.33,107250.0,107240.0,1.70891551]
[1750953406432,0.7038932,107260.0,107250.0,0.186402]
[1750953406734,1.09086421,107260.0,107250.0,0.248102]
[1750953407031,0.3924,107260.0,107250.0,0.60738436]
[1750953407239,0.36,107260.0,107250.0,1.01369075]
[1750953407537,0.0012,107270.0,107260.0,0.1863846]
[1750953407723,0.371,107270.0,107260.0,1.33366696]
[1750953408125,0.001,107270.0,107260.0,1.33366696]
[1750953408326,0.191,107270.0,107260.0,1.33366696]
[1750953408734,0.3773672,107270.0,107260.0,0.9743846]
[1750953409633,0.3803672,107270.0,107260.0,0.9743846]
[1750953409836,0.4125672,107270.0,107260.0,0.9743846]
[1750953411431,0.77184956,107270.0,107260.0,0.9129046]
[1750953411738,0.83774956,107270.0,107260.0,0.9128646]
[1750953412534,0.83774956,107270.0,107260.0,0.98720049]
[1750953412742,1.19854956,107270.0,107260.0,0.26072049]
[1750953412939,1.19854956,107270.0,107260.0,0.98716049]
[1750953413243,1.19854956,107270.0,107260.0,0.26072049]
[1750953413540,1.19854956,107270.0,107260.0,0.98716049]
[1750953414133,1.19854956,107270.0,107260.0,0.26072049]
[1750953414328,1.19854956,107270.0,107260.0,0.80073589]
[1750953415139,1.19854956,107270.0,107260.0,0.07433589]
[1750953415338,0.1863845,107260.0,107250.0,0.29488939]
[1750953415536,1.30936686,107260.0,107250.0,1.02128939]
[1750953416341,1.30936686,107260.0,107250.0,0.24829199]
[1750953416540,1.31036686,107260.0,107250.0,0.38925199]
[1750953416740,1.31036686,107260.0,107250.0,0.97469199]
[1750953417341,1.31036686,107260.0,107250.0,0.92809539]
[1750953417543,0.186402,107250.0,107240.0,1.17238211]
[1750953417842,0.186402,107250.0,107240.0,1.89878211]
[1750953417843,1.35168436,107250.0,107240.0,1.89878211]
[1750953418038,0.992402,107250.0,107240.0,1.89878211]
[1750953418642,0.642402,107250.0,107240.0,1.89878211]
[1750953418845,0.972402,107250.0,107240.0,1.89878211]
[1750953419748,0.732402,107250.0,107240.0,1.89878211]
[1750953420051,0.732402,107250.0,107240.0,1.17238211]
[1750953420249,0.732402,107250.0,107240.0,1.89870211]
[1750953420449,0.642402,107250.0,107240.0,1.17238211]
[1750953420648,0.952402,107250.0,107240.0,1.17238211]
[1750953420848,0.952402,107250.0,107240.0,1.31334211]
[1750953421050,0.732402,107250.0,107240.0,1.88332232]
[1750953421249,0.1,107250.0,107240.0,2.60340468]
[1750953421450,0.233192,107260.0,107250.0,0.186402]
[1750953421751,0.342992,107260.0,107250.0,0.63738436]
[1750953422250,0.2963942,107260.0,107250.0,0.63738436]
[1750953422652,0.32378554,107260.0,107250.0,0.63738436]
[1750953422852,0.32678554,107260.0,107250.0,0.63738436]
[1750953423160,0.32677594,107260.0,107250.0,0.63738436]
[1750953425456,0.003,107260.0,107250.0,0.63738436]
[1750953425842,0.003,107260.0,107250.0,0.99818436]
[1750953428156,0.003,107260.0,107250.0,0.638902]
[1750953428364,0.003,107260.0,107250.0,0.99818436]
[1750953429254,0.003,107260.0,107250.0,0.638902]
[1750953429460,0.003,107260.0,107250.0,0.99818436]
[1750953434557,0.91866696,107260.0,107250.0,0.638902]
[1750953434754,1.27946696,107260.0,107250.0,0.832822]
[1750953434946,1.31136696,107260.0,107250.0,0.832822]
[1750953435554,0.9520846,107260.0,107250.0,0.247702]
[1750953435852,0.9520846,107260.0,107250.0,0.973782]
[1750953436355,0.9520846,107260.0,107250.0,1.33306436]
[1750953436655,0.5912846,107260.0,107250.0,1.33306436]
[1750953436859,0.9520846,107260.0,107250.0,1.33306436]
[1750953437063,0.9420846,107260.0,107250.0,0.973782]
[1750953437662,0.96951697,107260.0,107250.0,0.973782]
[1750953437861,1.32879933,107260.0,107250.0,0.973782]
[1750953438159,1.36149933,107260.0,107250.0,0.942982]
[1750953438360,1.39269933,107260.0,107250.0,0.942982]
[1750953441566,1.18269933,107260.0,107250.0,0.942982]
[1750953441768,1.40269933,107260.0,107250.0,0.942982]
[1750953442066,1.40269933,107260.0,107250.0,0.975882]
[1750953443668,1.37149933,107260.0,107250.0,0.975882]
[1750953443868,0.64221697,107260.0,107250.0,0.975882]
[1750953444072,1.01221697,107260.0,107250.0,0.975882]
[1750953444268,0.80221697,107260.0,107250.0,0.975882]
[1750953444467,0.99221697,107260.0,107250.0,0.975882]
[1750953444858,0.64221697,107260.0,107250.0,0.975882]
[1750953445071,0.64141697,107260.0,107250.0,0.975882]
[1750953445670,0.42141697,107260.0,107250.0,1.36616436]
[1750953445869,0.20233237,107260.0,107250.0,1.72696436]
[1750953446071,0.38871687,107260.0,107250.0,1.72696436]
[1750953446872,0.35681687,107260.0,107250.0,1.72696436]
[1750953447672,0.17043237,107260.0,107250.0,1.72696436]
[1750953448068,0.35681697,107260.0,107250.0,1.72696436]
[1750953449167,0.17043237,107260.0,107250.0,1.72696436]
[1750953449676,0.03043237,107260.0,107250.0,1.72696436]
[1750953454083,0.003,107260.0,107250.0,1.72696436]
[1750953454283,0.003,107260.0,107250.0,2.03696436]
[1750953456885,0.1893846,107260.0,107250.0,1.677682]
[1750953457086,0.5794846,107260.0,107250.0,1.367682]
[1750953457286,0.6105846,107260.0,107250.0,1.367682]
[1750953458191,0.63804704,107260.0,107250.0,1.367682]
[1750953459185,0.45166244,107260.0,107250.0,1.367682]
[1750953459391,0.42056244,107260.0,107250.0,1.367682]
[1750953459691,0.25694704,107260.0,107250.0,1.367682]
[1750953460493,0.07056244,107260.0,107250.0,1.72696436]
[1750953460695,0.25694704,107260.0,107250.0,1.72696436]
[1750953462288,0.07056244,107260.0,107250.0,1.72696436]
[1750953462784,0.07056244,107260.0,107250.0,1.36616436]
[1750953462990,0.07056244,107260.0,107250.0,1.72696436]
[1750953463389,0.04046244,107260.0,107250.0,1.72696436]
[1750953463590,0.03046244,107260.0,107250.0,1.72696436]
[1750953464794,0.03046244,107260.0,107250.0,2.04696436]
[1750953464989,0.003,107260.0,107250.0,2.04696436]
[1750953466898,0.003,107260.0,107250.0,1.687682]
[1750953467090,0.003,107260.0,107250.0,2.04696436]
[1750953469503,0.0012,107270.0,107260.0,0.1863846]
[1750953469697,0.001,107270.0,107260.0,2.15382169]
[1750953470599,0.0002,107280.0,107270.0,0.1863672]
[1750953470798,0.0002,107290.0,107280.0,0.1863498]
[1750953471002,0.59235493,107300.0,107290.0,0.1863325]
[1750953471302,1.02031908,107300.0,107290.0,0.19558376]
[1750953471703,0.83400398,107300.0,107290.0,0.19558376]
[1750953472304,0.83400398,107300.0,107290.0,0.55486612]
[1750953472798,1.02031908,107300.0,107290.0,0.55486612]
[1750953473198,0.54400398,107300.0,107290.0,0.55486612]
[1750953473898,0.54400398,107300.0,107290.0,0.58506612]
[1750953474705,0.73031908,107300.0,107290.0,0.58506612]
[1750953474905,0.54400398,107300.0,107290.0,0.58506612]
[1750953475207,0.52453553,107300.0,107290.0,0.58506612]
[1750953475706,0.71085063,107300.0,107290.0,0.58006612]
[1750953476411,0.52453553,107300.0,107290.0,0.58006612]
[1750953476702,0.53053553,107300.0,107290.0,0.58006612]
[1750953476908,0.71685063,107300.0,107290.0,0.58006612]
[1750953477912,0.53053553,107300.0,107290.0,0.58006612]
[1750953478210,0.71685063,107300.0,107290.0,0.58006612]
[1750953478412,0.52253553,107300.0,107290.0,0.58006612]
[1750953478611,0.52853553,107300.0,107290.0,0.58006612]
[1750953479010,0.52553553,107300.0,107290.0,0.58006612]
[1750953479210,0.16473553,107300.0,107290.0,0.58006612]
[1750953481412,0.35105063,107300.0,107290.0,0.58006612]
[1750953481908,0.16473553,107300.0,107290.0,0.58006612]
[1750953482808,0.35105053,107300.0,107290.0,0.58006612]
[1750953483111,0.35105053,107300.0,107280.0,0.92565095]
[1750953483112,0.1863324,107290.0,107280.0,0.92565095]
[1750953483416,0.56815053,107300.0,107290.0,0.3266924]
[1750953483710,0.34083553,107300.0,107290.0,1.27941382]
[1750953483912,0.52715063,107300.0,107290.0,0.55493382]
[1750953484107,0.52715063,107300.0,107290.0,1.31161382]
[1750953484108,0.52415063,107300.0,107290.0,1.31161382]
[1750953485915,0.52715063,107300.0,107290.0,1.31161382]
[1750953487618,1.24723299,107300.0,107290.0,0.92013146]
[1750953489318,1.24723299,107300.0,107290.0,0.9108124]
[1750953489915,1.24723299,107300.0,107290.0,0.1863324]
[1750953490216,0.52715063,107300.0,107290.0,1.26997476]
[1750953490522,0.52715063,107300.0,107290.0,1.33447476]
[1750953491015,0.52715063,107300.0,107290.0,1.3438448]
[1750953492016,0.52715063,107300.0,107290.0,0.6498848]
[1750953492218,0.52715063,107300.0,107290.0,1.3742448]
[1750953492817,0.34083553,107300.0,107290.0,1.7350448]
[1750953493014,0.52715053,107300.0,107290.0,1.7350448]
[1750953494322,0.34715053,107300.0,107290.0,1.7350448]
[1750953495814,0.20715053,107300.0,107290.0,1.7350448]
[1750953496827,0.20715053,107300.0,107290.0,1.7046448]
[1750953497122,0.92925053,107300.0,107290.0,0.95266244]
[1750953497326,0.92925053,107300.0,107290.0,0.92006244]
[1750953497921,0.23845053,107300.0,107290.0,0.92006244]
[1750953498225,0.55845053,107300.0,107290.0,1.2793448]
[1750953498620,0.55845053,107300.0,107290.0,1.3099448]
[1750953499126,0.58610394,107300.0,107290.0,1.3099448]
[1750953499319,0.04848894,107300.0,107290.0,2.0307448]
[1750953499524,0.02083553,107300.0,107290.0,2.0618448]
[1750953500126,0.02083553,107300.0,107290.0,1.70256244]
[1750953500325,0.02083553,107300.0,107290.0,2.0618448]
[1750953501120,0.01883553,107300.0,107290.0,2.0618448]
[1750953501617,0.01483553,107300.0,107290.0,2.0618448]
[1750953502020,0.01483553,107300.0,107290.0,1.3374848]
[1750953502221,0.01483553,107300.0,107290.0,2.0614448]
[1750953502421,0.01283553,107300.0,107290.0,2.0624448]
[1750953503726,0.01283553,107300.0,107290.0,1.1384848]
[1750953503929,0.01283553,107300.0,107290.0,1.7024048]
[1750953504129,0.04603553,107300.0,107290.0,1.7024048]
[1750953504324,0.04603553,107300.0,107290.0,1.6713048]
[1750953504526,0.41713553,107300.0,107290.0,1.6713048]
[1750953504824,0.07663553,107300.0,107290.0,1.6713048]
[1750953505030,0.07663553,107300.0,107290.0,0.9673848]
[1750953505230,0.07663553,107300.0,107290.0,1.6913048]
[1750953506830,0.26295063,107300.0,107290.0,1.6913048]
[1750953507430,0.07663553,107300.0,107290.0,1.6913048]
[1750953508134,0.07663553,107300.0,107290.0,1.8713048]
[1750953508433,0.26295063,107300.0,107290.0,1.8713048]
[1750953508933,0.07663553,107300.0,107290.0,1.8713048]
[1750953510334,0.26295063,107300.0,107290.0,1.1473848]
[1750953510529,0.62223299,107300.0,107290.0,0.92046244]
[1750953510730,0.72223299,107300.0,107290.0,0.92046244]
[1750953511638,1.31303299,107300.0,107290.0,0.9110925]
[1750953511836,1.59075319,107300.0,107290.0,0.3274125]
[1750953512130,1.34075319,107300.0,107290.0,0.3274125]
[1750953513035,1.31303299,107300.0,107290.0,0.1873325]
[1750953514841,1.32246555,107300.0,107290.0,0.1873325]
[1750953515442,1.31303299,107300.0,107290.0,0.1873325]
[1750953515942,1.3407534,107300.0,107290.0,0.1873325]
[1750953519239,1.35028962,107300.0,107290.0,0.1873325]
[1750953522240,1.35028962,107300.0,107290.0,0.001]
[1750953522841,1.35028962,107300.0,107290.0,0.1873326]
[1750953523244,1.35028962,107300.0,107290.0,0.001]
[1750953523742,1.35028962,107300.0,107290.0,0.1873326]
[1750953525642,1.3407534,107300.0,107290.0,0.1873326]
[1750953527141,1.56499104,107300.0,107290.0,0.1873326]
[1750953529139,0.98147104,107300.0,107290.0,0.1873326]
[1750953529550,1.3407534,107300.0,107290.0,0.1873326]
[1750953535543,1.3407534,107300.0,107290.0,0.001]
[1750953537155,0.1863329,107290.0,107280.0,0.36330015]
[1750953537355,0.97555331,107290.0,107280.0,0.40988705]
[1750953537954,1.33483567,107290.0,107280.0,0.40988705]
[1750953538160,1.36793567,107290.0,107280.0,0.41188705]
[1750953538856,1.36793567,107290.0,107280.0,0.41288705]
[1750953539158,1.00865331,107290.0,107280.0,0.41288705]
[1750953539563,1.36793567,107290.0,107280.0,0.41288705]
[1750953539954,1.36793567,107290.0,107280.0,0.36630015]
[1750953540260,1.36893567,107290.0,107280.0,0.36530015]
[1750953541058,1.36893567,107290.0,107280.0,0.36330015]
[1750953541266,1.36893567,107290.0,107280.0,0.39490015]
[1750953541758,0.94585331,107290.0,107280.0,0.39490015]
[1750953542058,0.94585331,107290.0,107280.0,0.42610015]
[1750953542760,0.94585331,107290.0,107280.0,0.78538251]
[1750953543058,0.94585331,107290.0,107280.0,0.42610015]
[1750953543857,0.97605331,107290.0,107280.0,0.42610015]
[1750953544062,0.77605331,107290.0,107280.0,0.42610015]
[1750953544256,0.96605331,107290.0,107280.0,0.42610015]
[1750953544456,0.95605331,107290.0,107280.0,0.42610015]
[1750953544760,0.98745331,107290.0,107280.0,0.42610015]
[1750953545154,1.34673567,107290.0,107280.0,0.13024745]
[1750953545354,1.37903567,107290.0,107280.0,0.13024745]
[1750953549358,0.1863501,107280.0,107270.0,0.92964293]
[1750953549561,0.9171501,107280.0,107270.0,0.4210753]
[1750953549761,0.9488501,107280.0,107270.0,0.4210753]
[1750953550560,0.08,107280.0,107270.0,1.50315766]
[1750953550758,0.0012,107290.0,107280.0,0.1863501]
[1750953550960,0.01044692,107300.0,107290.0,0.1863327]
[1750953551165,0.01024692,107300.0,107290.0,1.47053506]
[1750953551565,0.03774407,107300.0,107290.0,1.47053506]
[1750953551870,0.01024692,107300.0,107290.0,1.47053506]
[1750953552369,0.01324692,107300.0,107290.0,1.47053506]
[1750953552562,0.0002,107310.0,107300.0,0.1863154]
[1750953552754,0.0002,107320.0,107310.0,0.1862981]
[1750953553064,0.280599,107330.0,107320.0,0.1862807]
[1750953553253,0.67784793,107330.0,107320.0,0.90636306]
[1750953553453,0.63128023,107330.0,107320.0,0.90636306]
[1750953554161,0.63128023,107330.0,107320.0,0.91547715]
[1750953554761,0.63428023,107330.0,107320.0,0.91147715]
[1750953554958,0.40144893,107330.0,107320.0,1.82447715]
[1750953555162,0.374,107330.0,107320.0,1.49447715]
[1750953555362,0.378,107330.0,107320.0,1.49447715]
[1750953555761,0.378,107330.0,107320.0,1.52777715]
[1750953556158,0.378,107330.0,107320.0,1.84777715]
[1750953556453,0.008,107330.0,107320.0,2.20705951]
[1750953556654,0.008,107330.0,107320.0,1.84777715]
[1750953556860,0.008,107330.0,107320.0,2.20705951]
[1750953557271,0.008,107330.0,107320.0,1.84777715]
[1750953557572,0.008,107330.0,107320.0,1.48849479]
[1750953557765,0.008,107330.0,107320.0,1.84777715]
[1750953559870,0.008,107330.0,107320.0,1.26477715]
[1750953561270,0.008,107330.0,107320.0,1.40433715]
[1750953561466,0.008,107330.0,107320.0,1.76361951]
[1750953561864,0.001,107360.0,107350.0,0.1862287]
[1750953562064,0.001,107360.0,107350.0,1.00507106]
[1750953562270,0.001,107360.0,107350.0,1.03687106]
[1750953562572,0.001,107360.0,107350.0,1.39767106]
[1750953562765,1e-07,107360.0,107350.0,1.75695342]
[1750953562965,1e-07,107360.0,107350.0,2.84671342]
[1750953563463,0.0020001,107360.0,107350.0,2.48743106]
[1750953563675,0.0020001,107360.0,107350.0,2.09787106]
[1750953563871,0.0020001,107360.0,107350.0,2.23743106]
[1750953564568,0.0020001,107360.0,107350.0,2.26773106]
[1750953564769,0.0020001,107360.0,107350.0,2.27273106]
[1750953565162,0.0020001,107360.0,107350.0,2.26773106]
[1750953565361,0.0020001,107360.0,107350.0,2.27373106]
[1750953565967,1e-07,107360.0,107350.0,2.27573106]
[1750953567474,1e-07,107360.0,107350.0,2.26573106]
[1750953567974,1e-07,107360.0,107350.0,1.95573106]
[1750953568165,1e-07,107360.0,107350.0,1.95569106]
[1750953568166,0.1862115,107360.0,107350.0,1.95569106]
[1750953568367,0.2062115,107360.0,107350.0,2.26569106]
[1750953568572,0.2062115,107360.0,107350.0,1.95569106]
[1750953569277,0.2062115,107360.0,107350.0,2.27569106]
[1750953570072,0.2062115,107360.0,107350.0,1.9164087]
[1750953570268,0.2062115,107360.0,107350.0,2.27569106]
[1750953570572,0.0200001,107360.0,107350.0,2.30569106]
[1750953570774,0.2062113,107360.0,107350.0,1.95569106]
[1750953571770,0.2062113,107360.0,107350.0,1.92389106]
[1750953571968,0.2395113,107360.0,107350.0,1.92389106]
[1750953572169,0.2727113,107360.0,107350.0,1.92389106]
[1750953573176,0.0865001,107360.0,107350.0,2.27389106]
[1750953573377,0.0333001,107360.0,107350.0,2.30669106]
[1750953573577,0.0333001,107360.0,107350.0,2.33839106]
[1750953575477,1e-07,107360.0,107350.0,2.33839106]
[1750953579674,0.1862113,107360.0,107350.0,1.9791087]
[1750953579873,0.0306001,107360.0,107350.0,2.33839106]
[1750953582182,0.2168112,107360.0,107350.0,1.9791087]
[1750953582481,0.2168112,107360.0,107350.0,2.05839106]
[1750953582786,0.2496112,107360.0,107350.0,2.02669106]
[1750953582977,0.2496112,107360.0,107350.0,1.96259106]
[1750953583178,0.2496112,107360.0,107350.0,1.89259106]
[1750953583779,0.4096112,107360.0,107350.0,1.3937887]
[1750953583976,0.9904112,107360.0,107350.0,1.1724687]
[1750953584475,1.01702542,107360.0,107350.0,1.1724687]
[1750953585079,1.37630778,107360.0,107350.0,1.1724687]
[1750953586470,1.37630778,107360.0,107350.0,1.0329885]
[1750953586882,1.37630778,107360.0,107350.0,0.1942285]
[1750953587180,1.37630778,107360.0,107350.0,0.008]
[1750953587484,1.37630778,107360.0,107350.0,0.1942285]
[1750953587682,1.37630778,107360.0,107350.0,0.008]
[1750953588279,1.37630778,107360.0,107350.0,0.1882285]
[1750953588586,1.37630778,107360.0,107350.0,0.1892285]
[1750953588785,1.37730778,107360.0,107350.0,0.1892285]
[1750953588982,1.01802542,107360.0,107350.0,0.1892285]
[1750953590574,1.37730778,107360.0,107350.0,0.1892285]
[1750953590978,1.01802542,107360.0,107350.0,0.1892285]
[1750953591175,1.01802542,107360.0,107350.0,0.54851086]
[1750953591489,0.74802542,107360.0,107350.0,0.57991086]
[1750953591694,0.38722542,107360.0,107350.0,0.57991086]
[1750953591888,0.35442542,107360.0,107350.0,0.57991086]
[1750953593491,0.16821432,107360.0,107350.0,0.57991086]
[1750953593883,0.16821432,107360.0,107350.0,0.58591086]
[1750953594778,0.16821432,107360.0,107350.0,0.61671086]
[1750953595383,0.16821432,107360.0,107350.0,0.97751086]
[1750953596092,0.13661432,107360.0,107350.0,1.29851086]
[1750953596284,0.13661432,107360.0,107350.0,0.97851086]
[1750953596789,0.13661432,107360.0,107350.0,0.97951086]
[1750953597686,0.13661432,107360.0,107350.0,1.33951086]
[1750953598588,0.02661432,107360.0,107350.0,1.33951086]
[1750953599589,0.02661432,107360.0,107350.0,0.97951086]
[1750953600601,1e-07,107360.0,107350.0,0.9302285]
[1750953601289,0.02674585,107360.0,107350.0,0.9302285]
[1750953601499,0.02674585,107360.0,107350.0,0.6202285]
[1750953601802,0.02674585,107360.0,107350.0,0.9902285]
[1750953601803,1e-07,107360.0,107350.0,0.9902285]
[1750953604508,1e-07,107360.0,107350.0,0.6202285]
[1750953604699,1e-07,107360.0,107350.0,0.9902285]
[1750953604900,1e-07,107360.0,107350.0,0.6202285]
[1750953605103,1e-07,107360.0,107350.0,0.9702285]
[1750953605797,1e-07,107360.0,107350.0,0.9802285]
[1750953606404,1e-07,107360.0,107350.0,0.7607885]
[1750953606600,1e-07,107360.0,107350.0,1.1407885]
[1750953606803,1e-07,107360.0,107350.0,0.7607885]
[1750953607309,1e-07,107360.0,107350.0,1.1107885]
[1750953609710,1e-07,107360.0,107350.0,1.1407885]
[1750953611112,1e-07,107360.0,107350.0,0.7299885]
[1750953611313,0.0331001,107360.0,107350.0,0.7299885]
[1750953613112,0.0331001,107360.0,107350.0,0.3691885]
[1750953613416,0.6201113,107360.0,107350.0,0.3377885]
[1750953613614,0.6855113,107360.0,107350.0,0.3377885]
[1750953614418,0.6855113,107360.0,107350.0,0.3287885]
[1750953614607,0.6855113,107360.0,107350.0,0.3337885]
[1750953615115,0.6855113,107360.0,107350.0,0.3327885]
[1750953616316,1.0255113,107360.0,107350.0,0.3327885]
[1750953616814,1.0255113,107360.0,107350.0,0.1922285]
[1750953617016,1.0255113,107360.0,107350.0,0.3327885]
[1750953618417,1.0255113,107360.0,107350.0,0.1922285]
[1750953618815,1.05226977,107360.0,107350.0,0.1922285]
[1750953619811,1.05326977,107360.0,107350.0,0.1912285]
[1750953620519,1.05326977,107360.0,107350.0,0.1892285]
[1750953621019,0.67326977,107360.0,107350.0,0.5092285]
[1750953624714,0.67326977,107360.0,107350.0,0.323]
[1750953624914,0.67326977,107360.0,107350.0,0.5092285]
[1750953625519,0.67326977,107360.0,107350.0,0.323]
[1750953626018,0.67326977,107360.0,107350.0,0.1992285]
[1750953626218,0.67326977,107360.0,107350.0,0.1892285]
[1750953626421,0.67326977,107360.0,107350.0,0.013]
[1750953627224,0.67326977,107360.0,107350.0,0.003]
[1750953627419,1.05705857,107360.0,107330.0,0.2328253]
[1750953627612,0.9078458,107340.0,107330.0,0.695955]
[1750953628018,0.9410458,107340.0,107330.0,0.758855]
[1750953628421,0.9410459,107340.0,107330.0,0.758855]
[1750953628723,0.7183182,107350.0,107340.0,0.1862459]
[1750953629025,0.7513182,107350.0,107340.0,0.5062459]
[1750953629928,0.7513182,107350.0,107340.0,0.5092459]
[1750953630318,0.7047573,107350.0,107340.0,0.5092459]
[1750953630513,0.3608,107350.0,107340.0,0.5102459]
[1750953630720,0.3608,107350.0,107340.0,0.7122459]
[1750953630921,0.0983001,107360.0,107350.0,0.1862285]
[1750953631121,1e-07,107360.0,107350.0,0.8984285]
[1750953631325,1e-07,107360.0,107350.0,0.9289285]
[1750953631526,1e-07,107360.0,107350.0,0.9608285]
[1750953633926,0.0002,107370.0,107350.0,0.9608285]
[1750953633927,0.0002,107370.0,107350.0,1.2128285]
[1750953634125,0.36763553,107390.0,107380.0,0.1861765]
[1750953634329,0.39422196,107390.0,107380.0,0.6857765]
[1750953634530,0.39422196,107390.0,107380.0,0.7468765]
[1750953634735,0.03342196,107390.0,107380.0,1.1076765]
[1750953635221,0.03542196,107390.0,107380.0,1.1076765]
[1750953636229,0.03542196,107390.0,107380.0,0.7468765]
[1750953637335,0.03542196,107390.0,107380.0,0.7795765]
[1750953637633,0.22158106,107390.0,107380.0,0.7795765]
[1750953638234,0.58238106,107390.0,107380.0,0.7795765]
[1750953638434,0.42752196,107390.0,107380.0,0.7795365]
[1750953639125,0.42752196,107390.0,107380.0,0.5461765]
[1750953639330,0.45932196,107390.0,107380.0,0.6857365]
[1750953639534,0.67768116,107390.0,107380.0,0.5461765]
[1750953640235,0.49152196,107390.0,107380.0,0.5461765]
[1750953642125,0.45932196,107390.0,107380.0,0.5762765]
[1750953642530,0.42752196,107390.0,107380.0,0.5762765]
[1750953642727,0.42752196,107390.0,107380.0,0.6406765]
[1750953643037,0.40093553,107390.0,107380.0,0.64978837]
[1750953643239,0.36963553,107390.0,107380.0,0.64978837]
[1750953644134,0.00883553,107390.0,107380.0,1.01058837]
[1750953648243,3e-08,107390.0,107380.0,1.01058837]
[1750953650737,3e-08,107390.0,107380.0,0.64978837]
[1750953650944,3e-08,107390.0,107380.0,1.01058837]
[1750953651346,3e-08,107390.0,107380.0,1.02611215]
[1750953652542,3e-08,107390.0,107380.0,1.01058837]
[1750953654945,3e-08,107390.0,107380.0,1.02611825]
[1750953660850,3e-08,107390.0,107380.0,1.16623825]
[1750953661047,3e-08,107400.0,107390.0,0.1861591]
[1750953661253,0.3618,107420.0,107410.0,0.1861245]
[1750953661549,0.392,107420.0,107410.0,0.5361245]
[1750953662145,0.41871184,107420.0,107410.0,0.5361245]
[1750953663644,0.41871184,107420.0,107410.0,0.5351245]
[1750953663849,0.392,107420.0,107410.0,0.5351245]